bitfinex-derivatives/quotes_SOLF0:USTF0_20260305
["timestamp","ask_amount","ask_price","bid_price","bid_amount"]
[1772740229281,3.23168301,88.999,88.955,10.115]
[1772740229487,3.23168301,88.999,88.961,10.115]
[1772740229779,10.46416869,89.036,88.952,3.68875492]
[1772740229780,10.109,89.011,88.952,3.68875492]
[1772740229980,3.24798292,89.009,88.961,3.68875492]
[1772740231484,3.24798292,89.009,88.95,3.55247347]
[1772740231485,3.24798292,89.009,88.967,13.89752092]
[1772740231682,3.55247347,89.01,88.968,3.78352092]
[1772740231987,3.55247347,89.02,88.971,3.78352092]
[1772740232188,3.55247347,89.04,88.991,3.78352092]
[1772740232388,3.24260625,89.048,89.001,3.78352092]
[1772740232589,3.55247347,89.04,89.001,3.78352092]
[1772740232790,10.106,89.039,88.987,3.78352092]
[1772740232989,13.331493,89.039,88.987,3.78352092]
[1772740233592,3.55247347,89.04,88.987,3.78352092]
[1772740233593,10.106,89.037,88.987,3.78352092]
[1772740233789,10.106,89.037,88.99,3.55247347]
[1772740234390,3.225493,89.036,88.99,7.33599439]
[1772740234591,3.225493,89.036,88.99,3.78352092]
[1772740236392,7.03557964,89.02,88.979,10.113]
[1772740236591,7.0380665,89.02,88.975,3.78352092]
[1772740237088,7.0380665,89.02,88.976,10.113]
[1772740237396,8.45852253,89.071,88.975,3.78352092]
[1772740237397,3.55496033,89.01,88.975,3.78352092]
[1772740237792,3.55496033,89.03,88.981,3.78352092]
[1772740238393,3.55496033,89.02,88.981,3.78352092]
[1772740241403,3.48958904,89.019,88.971,10.114]
[1772740241998,3.48958904,89.019,88.972,3.78352092]
[1772740242199,10.108,89.018,88.972,3.78352092]
[1772740242704,13.60030151,89.018,88.972,3.78352092]
[1772740244003,10.109,89.016,88.972,3.78352092]
[1772740245006,3.49240744,89.015,88.972,3.78352092]
[1772740246304,3.55496033,88.99,88.943,3.78352092]
[1772740246707,3.55496033,88.98,88.943,3.78352092]
[1772740251309,3.55496033,88.98,88.944,10.117]
[1772740255216,3.35781429,88.979,88.943,3.78352092]
[1772740256318,10.113,88.975,88.943,3.78352092]
[1772740256518,10.113,88.975,88.92,3.55496033]
[1772740256519,3.35781429,88.979,88.921,3.78352092]
[1772740257214,3.35781429,88.979,88.934,3.78352092]
[1772740257819,3.55496033,88.97,88.938,10.117]
[1772740258318,3.35781429,88.979,88.938,10.117]
[1772740259611,3.35781429,88.979,88.934,3.78352092]
[1772740259813,3.55496033,88.97,88.934,3.78352092]
[1772740260426,3.35781429,88.979,88.934,3.78352092]
[1772740261018,3.35781429,88.979,88.937,10.117]
[1772740261820,3.35781429,88.979,88.934,3.78352092]
[1772740262023,3.32558144,88.969,88.921,3.97689434]
[1772740263423,3.32558144,88.969,88.926,3.97689434]
[1772740264426,3.32558144,88.969,88.927,10.119]
[1772740264726,3.55496033,88.96,88.926,3.97689434]
[1772740265226,3.32558144,88.969,88.928,3.97689434]
[1772740269830,10.114,88.969,88.928,3.97689434]
[1772740270023,3.55496033,88.96,88.928,3.97689434]
[1772740276539,3.55496033,88.94,88.892,3.97689434]
[1772740276839,7.06382717,88.96,88.901,3.97689434]
[1772740277038,3.50886684,88.958,88.912,10.12]
[1772740277236,3.55496033,88.95,88.912,10.12]
[1772740277634,3.55496033,88.95,88.912,14.09689434]
[1772740277830,3.55496033,88.95,88.914,10.12]
[1772740278235,3.55496033,88.95,88.913,3.97689434]
[1772740280136,3.55496033,88.95,88.913,14.09689434]
[1772740280434,3.55496033,88.95,88.796,48.27726168]
[1772740280435,3.55496033,88.97,88.921,3.97689434]
[1772740281441,3.55496033,88.97,88.927,10.119]
[1772740281641,3.55496033,88.97,88.921,3.97689434]
[1772740281839,3.49687083,88.969,88.921,3.97689434]
[1772740282036,3.55496033,88.96,88.921,3.97689434]
[1772740282342,3.55496033,88.96,88.923,10.119]
[1772740283640,3.55496033,88.96,88.924,3.97689434]
[1772740283840,13.61087083,88.969,88.924,3.97689434]
[1772740285340,3.49687083,88.969,88.932,3.97689434]
[1772740287839,3.49687083,88.969,88.924,10.119]
[1772740288042,3.55496033,88.96,88.92,3.97689434]
[1772740289138,3.55496033,88.97,88.92,3.97689434]
[1772740289539,3.55496033,88.97,88.921,3.60298684]
[1772740290035,3.55496033,88.97,88.927,3.60298684]
[1772740290440,7.07376474,88.97,88.927,3.60298684]
[1772740290644,3.5161632,88.969,88.927,3.60298684]
[1772740291432,3.5161632,88.968,88.927,3.60298684]
[1772740292442,10.114,88.967,88.927,3.60298684]
[1772740293539,13.63125205,88.967,88.927,3.60298684]
[1772740294547,3.51725205,88.967,88.927,3.60298684]
[1772740295443,3.51718298,88.959,88.914,3.78076091]
[1772740295843,10.117,88.946,88.901,3.78076091]
[1772740296047,10.117,88.946,88.87,20.251]
[1772740296048,3.51718298,88.929,88.885,3.78076091]
[1772740296346,10.119,88.922,88.885,3.78076091]
[1772740296647,3.56338141,88.91,88.871,3.78076091]
[1772740297643,3.51718298,88.919,88.871,3.78076091]
[1772740297841,3.56338141,88.91,88.871,3.78076091]
[1772740298240,3.56338141,88.9,88.857,3.78076091]
[1772740298850,3.56338141,88.9,88.859,3.78076091]
[1772740299348,3.56338141,88.89,88.846,3.78076091]
[1772740299549,3.50751344,88.898,88.846,3.78076091]
[1772740300042,3.50751344,88.898,88.852,3.78076091]
[1772740300244,3.56338141,88.9,88.852,3.78076091]
[1772740300442,3.56338141,88.91,88.852,3.78076091]
[1772740301244,3.56338141,88.91,88.868,3.78076091]
[1772740301451,3.54654893,88.924,88.871,3.78076091]
[1772740302045,3.54654893,88.909,88.86,3.56338141]
[1772740302246,3.56338141,88.9,88.86,3.78076091]
[1772740302850,3.56338141,88.89,88.86,3.78076091]
[1772740304353,3.56338141,88.89,88.85,10.127]
[1772740305547,7.11901031,88.9,88.856,3.78076091]
[1772740307255,3.56211432,88.899,88.856,3.78076091]
[1772740307950,3.56211432,88.889,88.842,3.78076091]
[1772740309951,8.95376624,88.944,88.842,3.78076091]
[1772740309952,7.09981065,88.88,88.842,3.78076091]
[1772740310550,3.53642924,88.88,88.842,3.78076091]
[1772740311151,3.5471707,88.894,88.851,3.78076091]
[1772740311956,3.5471707,88.894,88.86,3.56338141]
[1772740312148,10.121,88.905,88.86,3.56338141]
[1772740312351,13.6681707,88.905,88.86,3.56338141]
[1772740312548,3.56338141,88.9,88.86,3.56338141]
[1772740313459,3.5471707,88.904,88.853,3.78076091]
[1772740314662,3.54711434,88.899,88.853,3.78076091]
[1772740316355,3.56338141,88.91,88.861,3.78076091]
[1772740316559,3.55234522,88.909,88.861,3.78076091]
[1772740316758,3.55234522,88.909,88.861,10.126]
[1772740317053,3.55234522,88.909,88.862,3.78076091]
[1772740318356,13.67334522,88.909,88.862,3.78076091]
[1772740320656,13.68238141,88.92,88.871,3.89331007]
[1772740321257,10.12,88.915,88.871,3.89331007]
[1772740321561,8.95624297,88.95,88.83,20.26]
[1772740321562,3.55803129,88.909,88.86,3.56338141]
[1772740321760,3.55803129,88.909,88.861,3.89331007]
[1772740322161,3.55803129,88.904,88.861,3.89331007]
[1772740322556,3.55803129,88.904,88.863,3.89331007]
[1772740323454,3.56338141,88.91,88.863,3.89331007]
[1772740323654,3.56137599,88.916,88.871,3.89331007]
[1772740324052,3.56137599,88.916,88.88,3.56338141]
[1772740324256,3.56137599,88.916,88.88,7.45669148]
[1772740324463,10.119,88.924,88.88,7.45669148]
[1772740324658,10.119,88.924,88.88,3.89331007]
[1772740325259,10.119,88.924,88.88,7.45669148]
[1772740327469,13.67641797,88.924,88.88,7.45669148]
[1772740328371,3.55741797,88.924,88.881,3.89331007]
[1772740329168,10.118,88.929,88.882,10.124]
[1772740329468,10.118,88.929,88.891,3.89331007]
[1772740330171,3.56164421,88.925,88.88,3.56338141]
[1772740330360,3.56164421,88.925,88.847,20.256]
[1772740330361,3.56164421,88.925,88.87,7.45669148]
[1772740330562,3.56164421,88.919,88.87,7.45669148]
[1772740330964,3.56164421,88.919,88.871,3.89331007]
[1772740331367,3.56338141,88.92,88.873,3.89331007]
[1772740331764,3.54362972,88.932,88.873,3.89331007]
[1772740331969,3.54362972,88.929,88.873,3.89331007]
[1772740332370,3.54362972,88.924,88.876,3.89331007]
[1772740333073,3.55799662,88.92,88.876,3.89331007]
[1772740334867,3.55799662,88.92,88.877,10.124]
[1772740335074,3.55925236,88.932,88.881,3.89331007]
[1772740335879,10.118,88.931,88.886,10.123]
[1772740336074,3.56338141,88.93,88.886,3.89331007]
[1772740336280,3.55925236,88.919,88.876,3.89331007]
[1772740337479,3.55925236,88.919,88.877,3.89331007]
[1772740338378,3.55925236,88.919,88.879,3.89331007]
[1772740339476,10.12,88.916,88.879,3.89331007]
[1772740339775,3.56338141,88.92,88.871,3.89331007]
[1772740341483,3.64147816,88.909,88.871,3.89331007]
[1772740341681,3.64147816,88.899,88.847,3.89331007]
[1772740341983,10.122,88.897,88.85,3.89331007]
[1772740342682,10.122,88.897,88.828,20.80614907]
[1772740342683,3.56338141,88.91,88.861,3.89331007]
[1772740343481,7.22572424,88.91,88.861,3.89331007]
[1772740343881,7.22572424,88.91,88.863,3.89331007]
[1772740344082,7.22572424,88.91,88.812,27.73911024]
[1772740344083,3.66234283,88.923,88.871,3.89331007]
[1772740344387,3.66234283,88.939,88.881,3.89331007]
[1772740344587,3.56338141,88.93,88.881,3.89331007]
[1772740344783,3.56338141,88.92,88.881,3.89331007]
[1772740347983,10.119,88.922,88.881,3.89331007]
[1772740348694,3.66874435,88.918,88.868,3.74845288]
[1772740349383,10.12,88.914,88.868,3.74845288]
[1772740349583,10.12,88.914,88.87,3.56338141]
[1772740351289,3.65759521,88.889,88.84,7.51354084]
[1772740351490,3.65759521,88.889,88.84,3.95015943]
[1772740352482,10.124,88.882,88.84,3.95015943]
[1772740352990,3.65759521,88.889,88.84,3.95015943]
[1772740353590,3.56338141,88.88,88.84,3.95015943]
[1772740353788,3.65759521,88.879,88.84,3.95015943]
[1772740353988,3.56338141,88.87,88.826,3.95015943]
[1772740354494,3.65759521,88.839,88.791,3.95015943]
[1772740354689,3.56338141,88.83,88.791,3.95015943]
[1772740355793,3.61179646,88.829,88.771,3.95015943]
[1772740355990,3.56338141,88.8,88.757,3.95015943]
[1772740356589,3.57238247,88.8,88.757,3.95015943]
[1772740358700,3.65759521,88.832,88.761,3.95015943]
[1772740358890,20.95431207,88.891,88.714,20.286]
[1772740358891,3.57238247,88.81,88.771,3.95015943]
[1772740359090,3.57238247,88.81,88.713,1.96020447]
[1772740359091,3.65759521,88.789,88.738,3.95015943]
[1772740359396,3.57238247,88.79,88.731,3.95015943]
[1772740359397,3.65759521,88.78,88.731,3.95015943]
[1772740359698,7.22997768,88.78,88.731,3.95015943]
[1772740360296,3.57238247,88.78,88.731,3.95015943]
[1772740360501,3.65759521,88.795,88.741,3.95015943]
[1772740361493,19.70351627,88.81,88.742,3.95015943]
[1772740361796,3.65759521,88.809,88.742,3.95015943]
[1772740362297,3.65759521,88.825,88.745,3.95015943]
[1772740362506,3.65759521,88.825,88.761,3.95015943]
[1772740363400,3.65759521,88.825,88.769,3.95015943]
[1772740363700,9.57151627,88.85,88.769,3.95015943]
[1772740363701,3.65759521,88.849,88.769,3.95015943]
[1772740364402,3.65759521,88.847,88.78,3.95015943]
[1772740364999,3.65759521,88.845,88.78,3.95015943]
[1772740366505,180.02,88.893,88.792,3.95015943]
[1772740366506,3.65759521,88.861,88.792,3.95015943]
[1772740367002,3.65759521,88.861,88.803,3.95015943]
[1772740367801,10.127,88.85,88.803,3.95015943]
[1772740368403,3.65759521,88.86,88.803,3.95015943]
[1772740369706,3.65759521,88.86,88.806,10.132]
[1772740369901,3.65759521,88.86,88.806,14.08215943]
[1772740370108,3.65759521,88.86,88.806,3.95015943]
[1772740370505,3.65759521,88.857,88.791,3.95015943]
[1772740372310,3.65759521,88.857,88.801,3.95015943]
[1772740373910,3.65759521,88.854,88.801,3.95015943]
[1772740377412,3.65759521,88.854,88.804,10.133]
[1772740377612,3.65759521,88.854,88.805,3.95015943]
[1772740379317,3.65759521,88.854,88.811,10.132]
[1772740379717,3.65759521,88.854,88.805,3.95015943]
[1772740379916,3.65759521,88.852,88.805,3.95015943]
[1772740380119,3.65759521,88.852,88.78,9.57151627]
[1772740380120,3.65759521,88.852,88.781,3.75015946]
[1772740381518,3.65759521,88.852,88.738,20.281]
[1772740381519,3.87155723,88.839,88.761,3.75015946]
[1772740381723,3.87155723,88.829,88.761,3.75015946]
[1772740382517,3.57243069,88.8,88.761,3.75015946]
[1772740382722,20.253,88.861,88.761,3.75015946]
[1772740382723,3.87155723,88.809,88.761,3.75015946]
[1772740382926,3.57243069,88.8,88.761,3.75015946]
[1772740383521,3.57243069,88.8,88.669,27.73911024]
[1772740383522,3.87155723,88.789,88.714,3.75015946]
[1772740383731,3.87155723,88.789,88.721,3.75015946]
[1772740384025,3.87155723,88.789,88.72,3.5733377]
[1772740384026,3.57243069,88.78,88.731,3.75015946]
[1772740384527,3.87155723,88.791,88.731,3.75015946]
[1772740384730,3.87155723,88.791,88.734,3.75015946]
[1772740385325,3.87155723,88.789,88.734,3.75015946]
[1772740385630,3.87155723,88.789,88.72,0.00090701]
[1772740386531,3.87155723,88.778,88.72,0.00090701]
[1772740387534,3.87155723,88.775,88.72,0.00090701]
[1772740388429,10.136,88.773,88.72,0.00090701]
[1772740389733,3.87155723,88.772,88.72,0.00090701]
[1772740390130,3.87155723,88.787,88.725,3.75015946]
[1772740390735,3.87155723,88.784,88.725,3.75015946]
[1772740391325,3.87155723,88.777,88.725,3.75015946]
[1772740391527,3.87155723,88.777,88.72,0.00090701]
[1772740392437,3.87155723,88.772,88.72,0.00090701]
[1772740393037,8.40970107,88.817,88.72,0.00090701]
[1772740393038,3.87155723,88.799,88.73,3.75015946]
[1772740393441,10.131,88.816,88.731,3.75015946]
[1772740393640,3.87155723,88.819,88.763,3.75015946]
[1772740394841,10.131,88.821,88.773,3.75015946]
[1772740395338,3.87155723,88.834,88.776,3.75015946]
[1772740395937,10.129,88.833,88.779,10.135]
[1772740396938,10.129,88.833,88.779,13.88515946]
[1772740397540,10.129,88.833,88.78,3.75015946]
[1772740398339,10.13,88.828,88.78,3.75015946]
[1772740398542,3.87155723,88.827,88.78,3.75015946]
[1772740399439,3.87155723,88.825,88.75,13.32442403]
[1772740399639,3.87155723,88.825,88.72,0.00090701]
[1772740399640,3.87155723,88.825,88.751,3.75015946]
[1772740399848,9.57426457,88.85,88.72,0.00090701]
[1772740399849,3.87155723,88.809,88.731,3.75015946]
[1772740400144,3.87155723,88.789,88.733,3.75015946]
[1772740400534,10.133,88.798,88.743,3.75015946]
[1772740401142,3.87155723,88.805,88.743,3.75015946]
[1772740402145,10.133,88.8,88.75,10.139]
[1772740402343,10.133,88.8,88.743,3.75015946]
[1772740402344,3.87155723,88.799,88.743,3.75015946]
[1772740402746,10.134,88.796,88.749,13.88915946]
[1772740403442,10.134,88.793,88.749,3.75015946]
[1772740403636,3.87155723,88.795,88.749,3.75015946]
[1772740404644,3.87155723,88.795,88.749,13.88915946]
[1772740405043,10.134,88.794,88.749,3.75015946]
[1772740405741,3.87155723,88.795,88.749,10.139]
[1772740406046,9.57426457,88.81,88.72,0.00090701]
[1772740406047,3.87155723,88.809,88.75,3.75015946]
[1772740406947,3.87155723,88.809,88.753,3.75015946]
[1772740407747,3.87155723,88.809,88.755,3.75015946]
[1772740408148,10.131,88.818,88.765,3.85163785]
[1772740408349,3.8690823,88.826,88.765,3.85163785]
[1772740409442,10.13,88.825,88.775,10.136]
[1772740410846,3.8690823,88.826,88.78,3.71552273]
[1772740411043,9.57426457,88.85,88.78,3.71552273]
[1772740411044,3.81288176,88.841,88.78,3.71552273]
[1772740412041,3.81288176,88.841,88.794,13.84952273]
[1772740412547,10.127,88.855,88.803,3.71552273]
[1772740412949,3.81288176,88.856,88.803,3.71552273]
[1772740413147,13.93988176,88.856,88.806,3.71552273]
[1772740413650,3.81288176,88.856,88.806,3.71552273]
[1772740415550,3.81288176,88.856,88.808,3.71552273]
[1772740417046,10.128,88.848,88.808,3.71552273]
[1772740417250,3.81288176,88.856,88.79,3.71552273]
[1772740417946,3.81288176,88.832,88.775,3.71552273]
[1772740418147,3.81288176,88.849,88.775,3.71552273]
[1772740418449,10.128,88.848,88.797,3.71552273]
[1772740418849,13.94088176,88.848,88.797,3.71552273]
[1772740419249,3.81288176,88.847,88.797,3.71552273]
[1772740420855,3.81288176,88.847,88.761,20.276]
[1772740420856,3.81288176,88.847,88.798,3.71552273]
[1772740421746,10.127,88.853,88.798,3.71552273]
[1772740422350,10.127,88.853,88.799,10.133]
[1772740422547,10.127,88.853,88.8,3.71552273]
[1772740424458,13.93988176,88.853,88.8,3.71552273]
[1772740424959,13.93988176,88.853,88.804,10.133]
[1772740425757,13.93988176,88.853,88.804,13.84852273]
[1772740426061,13.93988176,88.853,88.805,3.71552273]
[1772740426456,3.81288176,88.852,88.805,3.71552273]
[1772740427761,3.81288176,88.852,88.806,13.84752273]
[1772740428255,3.81288176,88.852,88.806,3.71552273]
[1772740429462,3.81288176,88.849,88.806,3.71552273]
[1772740430354,3.81288176,88.847,88.792,13.84952273]
[1772740430955,3.81288176,88.842,88.799,3.71552273]
[1772740432064,3.81288176,88.869,88.807,3.71552273]
[1772740432761,3.81288176,88.855,88.793,3.71552273]
[1772740432959,3.81288176,88.869,88.793,3.71552273]
[1772740433465,3.81288176,88.869,88.815,3.71552273]
[1772740433466,10.127,88.858,88.815,3.71552273]
[1772740434261,9.559441,88.87,88.815,3.71552273]
[1772740434459,3.81288176,88.849,88.726,20.80614907]
[1772740434664,3.81288176,88.849,88.77,9.559441]
[1772740434862,3.81288176,88.849,88.75,9.559441]
[1772740435063,10.129,88.835,88.784,10.135]
[1772740435766,13.94088176,88.843,88.791,10.134]
[1772740437765,13.94088176,88.843,88.791,13.84952273]
[1772740438068,13.94088176,88.843,88.792,3.71552273]
[1772740438563,13.94088176,88.843,88.75,9.559441]
[1772740438564,3.81288176,88.843,88.796,3.71552273]
[1772740439463,10.128,88.841,88.796,3.71552273]
[1772740440566,3.56929567,88.84,88.796,3.71552273]
[1772740440970,3.56929567,88.84,88.798,3.6471727]
[1772740442060,3.81288176,88.843,88.798,3.6471727]
[1772740442969,10.128,88.842,88.798,3.6471727]
[1772740443766,3.6141805,88.839,88.783,3.6471727]
[1772740443968,3.6141805,88.829,88.783,3.6471727]
[1772740444562,3.56929567,88.84,88.788,3.6471727]
[1772740444762,3.56929567,88.84,88.731,177.0]
[1772740444763,3.56929567,88.84,88.791,3.6471727]
[1772740445663,3.6141805,88.873,88.81,3.56929567]
[1772740445862,3.6141805,88.869,88.811,3.6471727]
[1772740447476,3.6141805,88.859,88.801,3.6471727]
[1772740447672,3.56929567,88.85,88.801,3.6471727]
[1772740448075,3.56929567,88.85,88.808,10.132]
[1772740449171,10.127,88.855,88.808,10.132]
[1772740450574,3.56929567,88.85,88.808,10.132]
[1772740450776,10.125,88.87,88.821,3.6471727]
[1772740451874,3.56929567,88.86,88.821,3.6471727]
[1772740452277,3.6141805,88.879,88.821,3.6471727]
[1772740452572,3.6141805,88.876,88.826,3.6471727]
[1772740452778,3.6141805,88.876,88.83,7.21646837]
[1772740453072,3.56929567,88.87,88.83,3.6471727]
[1772740453278,7.18347617,88.87,88.83,3.6471727]
[1772740454981,3.6141805,88.869,88.826,10.13]
[1772740456680,3.6141805,88.869,88.819,10.131]
[1772740456873,3.6141805,88.859,88.819,10.131]
[1772740457477,7.18347617,88.83,88.789,3.6471727]
[1772740457882,3.56929567,88.83,88.789,3.6471727]
[1772740458083,3.6141805,88.859,88.811,3.6471727]
[1772740458581,10.126,88.858,88.813,10.132]
[1772740459780,10.126,88.858,88.814,3.6471727]
[1772740459981,10.126,88.858,88.816,3.6471727]
[1772740460374,3.56929567,88.86,88.816,3.6471727]
[1772740460580,10.126,88.865,88.816,3.6471727]
[1772740461083,10.126,88.861,88.816,3.6471727]
[1772740461777,10.125,88.868,88.818,3.6471727]
[1772740464084,13.7391805,88.868,88.818,3.6471727]
[1772740464884,13.7391805,88.868,88.791,20.80614907]
[1772740464885,3.6141805,88.865,88.792,3.6471727]
[1772740465482,3.6141805,88.859,88.804,3.6471727]
[1772740466285,10.125,88.869,88.823,10.13]
[1772740466684,10.125,88.869,88.823,13.7771727]
[1772740467382,3.6141805,88.874,88.826,3.6471727]
[1772740468680,10.125,88.872,88.826,3.6471727]
[1772740469385,3.6141805,88.874,88.826,3.6471727]
[1772740469980,3.6141805,88.874,88.828,10.13]
[1772740470186,3.6141805,88.874,88.829,3.97785394]
[1772740472187,14.05218265,88.872,88.829,3.97785394]
[1772740472389,3.92718265,88.871,88.829,3.97785394]
[1772740473391,3.92718265,88.869,88.814,3.67733404]
[1772740474080,3.92718265,88.86,88.79,9.55578177]
[1772740474282,3.92718265,88.86,88.801,3.67733404]
[1772740475392,3.92718265,88.858,88.808,3.67733404]
[1772740475791,3.92718265,88.858,88.79,3.67733404]
[1772740476093,3.92718265,88.837,88.79,3.67733404]
[1772740476994,3.92718265,88.837,88.765,3.67733404]
[1772740477492,10.13,88.828,88.78,3.67733404]
[1772740478385,10.13,88.828,88.783,10.135]
[1772740479596,10.132,88.813,88.768,3.67733404]
[1772740480387,10.132,88.813,88.77,10.137]
[1772740480583,10.132,88.813,88.77,17.38528704]
[1772740481189,3.92718265,88.827,88.781,3.67733404]
[1772740481787,3.570953,88.82,88.781,3.67733404]
[1772740481993,3.92718265,88.809,88.76,3.570953]
[1772740482194,3.92718265,88.809,88.759,3.67733404]
[1772740482195,3.570953,88.8,88.759,3.67733404]
[1772740482395,7.49813565,88.8,88.759,3.67733404]
[1772740482796,3.92718265,88.799,88.759,3.67733404]
[1772740482996,3.570953,88.79,88.743,13.81733404]
[1772740483389,3.570953,88.78,88.737,20.80614907]
[1772740483594,3.92718265,88.779,88.73,3.67733404]
[1772740483891,3.92718265,88.801,88.742,3.67733404]
[1772740484097,3.570953,88.8,88.751,3.67733404]
[1772740485187,3.92718265,88.801,88.762,10.137]
[1772740487798,3.570953,88.8,88.762,10.137]
[1772740488194,10.4572043,88.863,88.72,0.00090701]
[1772740488195,3.92718265,88.815,88.771,10.136]
[1772740488395,3.92718265,88.815,88.772,3.67733404]
[1772740490994,3.92718265,88.809,88.753,3.67733404]
[1772740491194,3.570953,88.8,88.753,3.67733404]
[1772740491400,3.92718265,88.809,88.72,0.00090701]
[1772740491401,3.92718265,88.809,88.761,3.67733404]
[1772740491901,3.92718265,88.799,88.75,3.570953]
[1772740492601,3.92718265,88.799,88.747,3.67733404]
[1772740493194,3.570953,88.8,88.747,3.67733404]
[1772740493195,3.92718265,88.797,88.747,3.67733404]
[1772740493392,3.92718265,88.789,88.73,7.24828704]
[1772740493597,3.92718265,88.779,88.731,3.67733404]
[1772740493800,3.92718265,88.769,88.72,3.57186001]
[1772740494005,3.92718265,88.769,88.72,0.00090701]
[1772740494705,3.92718265,88.768,88.72,3.57186001]
[1772740494906,3.92718265,88.759,88.72,0.00090701]
[1772740495304,10.4572043,88.811,88.72,0.00090701]
[1772740495305,3.570953,88.78,88.73,3.570953]
[1772740495599,3.92718265,88.779,88.73,3.570953]
[1772740495803,3.92718265,88.779,88.731,3.67733404]
[1772740495994,3.92718265,88.779,88.74,3.570953]
[1772740496196,3.92718265,88.777,88.73,3.570953]
[1772740496397,3.92718265,88.777,88.72,3.57186001]
[1772740496595,3.92718265,88.769,88.72,0.00090701]
[1772740497003,3.92718265,88.768,88.72,0.00090701]
[1772740497305,3.570953,88.76,88.72,0.00090701]
[1772740497607,3.92718265,88.758,88.72,0.00090701]
[1772740498008,3.92718265,88.758,88.72,3.57186001]
[1772740499707,3.92718265,88.758,88.72,0.00090701]
[1772740500309,3.570953,88.74,88.72,0.00090701]
[1772740500506,3.570953,88.73,88.683,3.98080786]
[1772740501709,3.70120233,88.739,88.691,10.145]
[1772740502309,7.27215533,88.73,88.683,3.98080786]
[1772740503809,7.27215533,88.76,88.71,3.570953]
[1772740504201,3.70120233,88.759,88.71,3.570953]
[1772740504404,3.70120233,88.739,88.69,7.55176086]
[1772740504910,3.70120233,88.719,88.674,3.98080786]
[1772740505308,3.570953,88.73,88.692,10.145]
[1772740505512,3.70120233,88.735,88.692,10.145]
[1772740506313,3.70120233,88.735,88.69,3.570953]
[1772740506524,3.570953,88.73,88.681,3.98080786]
[1772740506724,3.70120233,88.729,88.681,3.98080786]
[1772740507512,3.570953,88.74,88.691,3.98080786]
[1772740507717,3.70120233,88.739,88.691,3.98080786]
[1772740508516,3.70120233,88.739,88.693,3.98080786]
[1772740508712,3.570953,88.75,88.693,3.98080786]
[1772740508918,3.570953,88.76,88.711,3.98080786]
[1772740509114,3.70120233,88.759,88.7,3.570953]
[1772740509319,3.70120233,88.747,88.7,3.570953]
[1772740509520,3.70120233,88.747,88.695,3.98080786]
[1772740510421,10.14,88.744,88.695,3.98080786]
[1772740510720,10.14,88.744,88.69,3.570953]
[1772740510721,3.70120233,88.739,88.69,3.98080786]
[1772740510913,3.70120233,88.739,88.69,7.55176086]
[1772740511116,3.70120233,88.729,88.68,3.570953]
[1772740511417,3.70120233,88.729,88.673,3.98080786]
[1772740512217,3.70120233,88.719,88.66,7.55176086]
[1772740512421,3.70120233,88.709,88.66,7.55176086]
[1772740512616,3.70120233,88.709,88.66,3.98080786]
[1772740513017,3.70120233,88.709,88.645,3.98080786]
[1772740513922,3.70120233,88.706,88.647,10.151]
[1772740514416,3.70120233,88.706,88.653,3.98080786]
[1772740514917,3.70120233,88.701,88.653,3.98080786]
[1772740515123,3.70120233,88.701,88.621,3.98080786]
[1772740515521,10.145,88.7,88.649,10.15]
[1772740515724,3.70120233,88.701,88.65,3.98080786]
[1772740516119,3.70120233,88.729,88.65,3.98080786]
[1772740516320,3.70120233,88.716,88.661,3.98080786]
[1772740517118,3.70120233,88.716,88.641,3.98080786]
[1772740517517,3.70120233,88.714,88.641,3.98080786]
[1772740518419,3.70120233,88.714,88.655,3.98080786]
[1772740519119,3.70120233,88.714,88.675,10.147]
[1772740519521,3.70120233,88.714,88.655,3.98080786]
[1772740520415,3.70120233,88.714,88.667,14.12880786]
[1772740520616,3.70120233,88.714,88.668,3.98080786]
[1772740520826,3.70120233,88.732,88.668,3.98080786]
[1772740521226,10.141,88.733,88.63,9.5893529]
[1772740521227,3.70120233,88.747,88.674,3.98080786]
[1772740521818,3.70120233,88.747,88.693,3.98080786]
[1772740522926,3.70120233,88.745,88.693,3.98080786]
[1772740523524,3.70120233,88.745,88.67,9.5893529]
[1772740523525,9.5893529,88.76,88.697,3.98080786]
[1772740523825,3.70120233,88.761,88.697,3.98080786]
[1772740524524,3.70120233,88.751,88.697,3.98080786]
[1772740527032,3.70120233,88.748,88.681,3.98080786]
[1772740527228,3.70120233,88.739,88.665,3.98080786]
[1772740527530,3.70120233,88.72,88.666,3.98080786]
[1772740528127,3.70120233,88.72,88.671,3.69192489]
[1772740530727,3.60273297,88.709,88.652,10.15]
[1772740531235,3.60273297,88.709,88.652,13.7817212]
[1772740531429,3.60273297,88.701,88.652,3.6317212]
[1772740532130,3.60273297,88.739,88.655,3.6317212]
[1772740532630,3.60273297,88.709,88.655,3.6317212]